[Event "CZE-ch U16 Open 2023"]
[Site "Teplice"]
[Date "2023.03.13"]
[Round "4.9"]
[White "Svoboda, Daniel"]
[Black "Zezula, Jakub"]
[Result "1-0"]
[ECO "C47"]
[WhiteElo "1748"]
[BlackElo "1963"]
[Annotator "TA"]
[PlyCount "105"]
[EventDate "2023.03.09"]
[EventType "swiss"]
[EventCountry "CZE"]
[SourceTitle "playchess.com"]
[Source "ChessBase"]
[SourceQuality "1"]
[TimeControl "40/5400+30:1800+30"]

{[%evp 14,105,16,21,39,37,26,25,30,29,21,7,13,5,52,61,62,66,100,107,104,39,91,77,82,85,136,81,81,91,84,14,7,-28,0,0,0,0,0,0,0,-28,23,37,68,68,77,70,70,70,281,274,281,272,224,220,228,37,214,97,426,407,508,431,359,189,760,752,736,721,652,647,2167,1960,12835,12835,12836,12837,12837,12837,12838,12837,12837,12838,12838,12838,12839,12839,12839,12840,12841,12842,12842,12842]} 1. e4 e5 2. Nf3 Nc6 3. Nc3 Nf6 4. d4 exd4 {[%emt 0:00:57]} 5. Nxd4 {[%emt 0:01:09]} Bb4 {[%emt 0:00:04]} 6. Nxc6 {[%emt 0:00:12]} bxc6 {[%emt 0:00:04]} 7. Bd3 {[%emt 0:00:08]} d6 {[%emt 0:00:05]} 8. Bg5 {[%emt 0:04:48][%cal Bc1g5,Bg5h4,Bh4g3,Bg3f2][%mdl 32]} h6 {[%emt 0:00:00][%cal Bh7h6,Bh6h5,Bh5h4][%mdl 32] C47: Scotch Four Knights and Four Knights with 4 g3.} 9. Bh4 {[%emt 0:00:00]} Be6 {[%emt 0:00:11]} 10. O-O {[%emt 0:02:23]} g5 {[%emt 0:00:06] White has an edge.} 11. Bg3 {[%emt 0:03:28]} h5 {[%emt 0:01:35] Threatens to win with ...h4.} 12. f3 {[%emt 0:32:36]} h4 {[%emt 0:16:20]} 13. Bf2 {[%emt 0:02:12]} g4 {[%emt 0:00:16]} (13... h3 $11 {deserves consideration.}) 14. Bd4 $14 {[%emt 0:03:54]} g3 {[%emt 0:25:31]} 15. h3 {[%emt 0:15:17]} Bc5 {[%emt 0:19:30]} 16. Bxc5 {[%emt 0:05:27]} dxc5 {[%emt 0:00:03] [#]} 17. Ba6 $146 {[%emt 0:09:18]} (17. f4 $1 $16) ({Predecessor:} 17. Be2 Qc8 18. f4 Bxh3 19. f5 Bxg2 20. Kxg2 Ke7 21. e5 Nd5 22. Nxd5+ cxd5 23. f6+ {1-0 Zavivaeva,E (1735)-Starosta,M (2079) Speed Chess (Women) Q5 blitz 2020 (13)}) 17... Qxd1 {[%emt 0:09:35]} (17... Qd4+ $14 18. Qxd4 cxd4) 18. Raxd1 $16 {[%emt 0:00:55]} Rb8 {[%emt 0:00:21]} 19. b3 {[%emt 0:02:39]} Ke7 {[%emt 0:01:54]} (19... c4 $142) 20. Na4 {[%emt 0:01:54]} (20. f4 $142 $1) 20... c4 {[%emt 0:00:39]} 21. Nb2 $1 {[%emt 0:06:45]} ({Reject} 21. bxc4 Rh5 22. c5 Rb4 $11) ({Of course not} 21. Bxc4 $6 Bxc4 22. bxc4 Rb4 $11) 21... cxb3 {[%emt 0:02:06]} 22. cxb3 {[%emt 0:00:22]} (22. axb3 $16 Rhd8 23. Nd3) 22... Rhd8 $11 {[%emt 0:01:08]} 23. Bc4 {[%emt 0:01:58] White is weak on the dark squares} Rxd1 {[%emt 0:03:02]} 24. Rxd1 {[%emt 0:00:01]} Nh5 {[%emt 0:02:12]} 25. Bxe6 {[%emt 0:02:30]} fxe6 {[%emt 0:04:41][%mdl 4096] Endgame KRN-KRN} 26. Nc4 {[%emt 0:00:38]} Nf4 {[%emt 0:06:07]} 27. Ne5 {[%emt 0:00:54]} Rb6 {[%emt 0:02:01]} (27... Rb5 $142 28. Nxc6+ Kf6) 28. Rd7+ {[%emt 0:00:58]} Ke8 {[%emt 0:01:38] Strongly threatening ...Rb5.} 29. Rxc7 {[%emt 0:00:47] White is more active.} Ra6 {[%emt 0:00:15]} 30. Rc8+ $1 {[%emt 0:03:14]} (30. Nxc6 $2 {loses.} Rxa2 31. Rxa7 Rb2 32. Ra8+ Kd7 33. Ne5+ Kc7 $19) 30... Ke7 {[%emt 0:00:08]} 31. Nxc6+ {[%emt 0:00:49]} Kd7 $2 {[%emt 0:03:59]} ({Black should try} 31... Kf6 $14 32. a4 e5) 32. Nb8+ $18 {[%emt 0:00:07]} Kxc8 {[%emt 0:00:05]} 33. Nxa6 {[%emt 0:00:03] KN-KN} Kb7 {[%emt 0:00:14]} 34. Nb4 {[%emt 0:01:02]} Kb6 {[%emt 0:00:09]} 35. Kf1 $2 {[%emt 0:00:44]} ({White must play} 35. a3 $1 $18) 35... Kc5 $2 {[%emt 0:00:46]} ({Black should play} 35... Kb5 $1 $14 36. Nc2 Kc5) 36. Nc2 {[%emt 0:00:10]} (36. a3 $1 $18 {has better winning chances.}) 36... a5 $2 {[%emt 0:01:06][%mdl 8192] [#]} (36... a6 $16 {is a better chance.}) 37. a3 $1 {[%emt 0:00:53]} Nd3 {[%emt 0:00:34] [#]} 38. b4+ $1 axb4 {[%emt 0:00:36]} 39. axb4+ {[%emt 0:00:40]} (39. Nxb4 $142 Nf4 40. Na2) 39... Kb6 $2 {[%emt 0:01:23]} (39... Kc4) 40. Nd4 {[%emt 0:00:59] White is clearly winning.} Nf4 {[%emt 0:00:00]} 41. Ne2 {[%emt 0:07:09]} Nd3 {[%emt 0:02:36]} 42. f4 {[%emt 0:03:44][%cal Bf3f4,Bf4e5,Be5e6][%mdl 32]} Nxb4 {[%emt 0:00:54]} 43. Nd4 {[%emt 0:01:13] Dodges Nc2} e5 {[%emt 0:01:56]} 44. fxe5 {[%emt 0:02:22]} Nd3 {[%emt 0:00:09]} 45. e6 {[%emt 0:05:23] White threatens e7 and mate.} Kc7 {[%emt 0:00:37]} 46. Ke2 {[%emt 0:00:51]} Ne5 {[%emt 0:00:14]} 47. Nf5 {[%emt 0:01:13]} Kd8 {[%emt 0:00:30]} 48. Nxh4 {[%emt 0:02:45]} Ke7 {[%emt 0:00:18]} 49. Nf5+ {[%emt 0:00:23]} Kxe6 {[%emt 0:00:02]} 50. Nxg3 {[%emt 0:00:06]} Ng6 {[%emt 0:00:12]} 51. Nf5 {[%emt 0:04:51]} Nf4+ {[%emt 0:00:19]} 52. Kf3 {[%emt 0:00:15]} Ke5 {[%emt 0:00:04]} 53. h4 {[%emt 0:00:50] Weighted Error Value: White=0.24 (precise) /Black=0.53} 1-0

[Event "CZE-ch U16 Open 2023"]
[Site "Teplice"]
[Date "2023.03.13"]
[Round "4.10"]
[White "Mohapl, Tomas"]
[Black "Tesar, Jakub"]
[Result "0-1"]
[ECO "D20"]
[WhiteElo "1946"]
[BlackElo "1960"]
[Annotator "TA"]
[PlyCount "86"]
[EventDate "2023.03.09"]
[EventType "swiss"]
[EventCountry "CZE"]
[SourceTitle "playchess.com"]
[Source "ChessBase"]
[SourceQuality "1"]
[TimeControl "40/5400+30:1800+30"]

{[%evp 11,86,-10,44,33,24,43,89,22,35,-12,73,58,224,186,154,52,45,45,42,53,47,45,103,89,93,58,474,147,159,159,155,124,192,59,387,390,469,460,453,430,648,0,648,166,160,167,465,458,431,-8,174,174,173,172,123,171,349,350,404,168,170,-83,45,-535,-526,-449,-231,-5592,-5493,-5622,-3137,-29984,-29985,-29987,-29988,-29984,-29985]} 1. d4 {[%emt 0:00:04]} d5 {[%emt 0:00:08]} 2. c4 {[%emt 0:00:05]} dxc4 {[%emt 0:00:09]} 3. e4 {[%emt 0:00:13]} b5 {[%emt 0:00:51][%cal Bb7b5,Bb5b4][%mdl 32]} 4. a4 {[%emt 0:00:54]} c6 {[%emt 0:00:08]} 5. Nc3 {[%emt 0:01:20]} b4 {[%emt 0:06:33]} 6. Na2 {[%emt 0:00:22] [#]} e5 {[%emt 0:08:32]} 7. Nf3 $14 {[%emt 0:15:03] D10: Slav Defence: 3 cxd5 (without early Nf3) and 3 Nc3.} exd4 {[%emt 0:14:52]} 8. Bxc4 {[%emt 0:07:37][%cal Oc1g5,Bf1c4,Bc4b3,Bb3d1,Bd1f3,Bf3c6][%mdl 32]} Nf6 {[%emt 0:19:26] [#]} (8... Ba6 $14 {is superior.} 9. Bxa6 (9. Qxd4 $2 Qxd4 {[%mdl 64] Remove Defender} 10. Nxd4 Bxc4 $19) 9... Nxa6) 9. e5 $146 {[%emt 0:14:16]} (9. Nxd4 Bd6 $11) (9. Qxd4 $6 Qxd4 10. Nxd4 Bc5 $11) (9. Qb3 $16 Qe7 10. O-O) ({Predecessor:} 9. Ng5 Be6 10. Nxe6 fxe6 11. O-O e5 12. f4 Bd6 13. fxe5 Bxe5 14. Nxb4 Nbd7 15. Nxc6 {1-0 Harshavardhan,G (2397)-Guimaraes,D (2248) Titled Tuesday intern op 27th Apr blitz 2021 (9)}) 9... Nd5 $11 {[%emt 0:03:28]} 10. Nxd4 {[%emt 0:03:25]} (10. Bg5 $14 Be7 11. Bxe7 Qxe7 12. Qxd4 (12. Nxd4 Nb6 $15)) 10... Nb6 {[%emt 0:14:00]} (10... Bc5 $1 $11) 11. Bb3 $16 {[%emt 0:10:44][%cal Od1h5]} Ba6 $2 {[%emt 0:06:28]} ({Better is} 11... Bc5 $14 12. Be3 Bxd4 13. Qxd4 (13. Bxd4 Nd5 $14) 13... Qxd4 14. Bxd4 Na6) 12. Be3 $18 {[%emt 0:09:56] Black must now prevent Qf3.} c5 {[%emt 0:04:12]} 13. Nb5 {[%emt 0:03:03]} ({White should play} 13. e6 $16 f5 14. Nxf5 Qxd1+ 15. Bxd1 (15. Rxd1 Bc4 $16)) 13... Qxd1+ $14 {[%emt 0:00:14][%mdl 64] Remove Defender} 14. Bxd1 {[%emt 0:01:56]} Bxb5 {[%emt 0:01:13]} 15. axb5 {[%emt 0:00:22] Bf3 is the strong threat.} N8d7 {[%emt 0:00:34]} 16. Bf3 {[%emt 0:01:25]} Rc8 {[%emt 0:02:18]} (16... O-O-O $1 $14) 17. Bc6 $16 {[%emt 0:04:07] This pair of bishops is nice.} Nc4 {[%emt 0:02:44][%csl LRb2,LRe5]} 18. Nc1 {[%emt 0:09:33]} Nxe3 $2 {[%emt 0:02:47][%mdl 8192]} (18... Ncxe5 $14 19. Bxd7+ (19. Rxa7 Nxc6 20. bxc6 Ne5 $15) 19... Kxd7) 19. fxe3 $2 {[%emt 0:00:22]} (19. Rxa7 $1 $18 {is the precise move to win.} Nxg2+ 20. Kf1) 19... Rc7 {[%emt 0:00:22] Black is weak on the light squares} 20. Nd3 {[%emt 0:01:31]} Kd8 {[%emt 0:02:18]} 21. Nf4 $36 {[%emt 0:02:28][%mdl 2048] Threatens to win with Nd5. White is in control.} Nb6 {[%emt 0:01:49]} (21... Nxe5 $16 {was called for.} 22. Nd5 Rxc6 23. bxc6 Nxc6) 22. O-O {[%emt 0:07:44]} (22. e4 $18 {Hoping for Nd5.} c4 23. O-O-O+ Kc8 24. Nd5) 22... Kc8 $2 {[%emt 0:01:44][%mdl 8192]} (22... c4 $14) 23. Nd5 $18 {[%emt 0:01:06]} Rxc6 {[%emt 0:01:12]} 24. bxc6 {[%emt 0:00:21]} Nxd5 {[%emt 0:00:07]} 25. Rxa7 {[%emt 0:00:49] Strongly threatening Rd1.} f6 {[%emt 0:00:22]} (25... c4 $142 26. Rfxf7 (26. Raxf7 Bc5 $14) 26... Ne7) 26. e4 $2 {[%emt 0:01:14]} (26. Rd1 $18 Ne7 27. Rdd7 Nxc6 28. Rac7+ Kb8 29. Rxc6) 26... Ne3 {[%emt 0:01:54][%mdl 8192]} (26... Nc7 $11) 27. Rf3 $2 {[%emt 0:01:12]} (27. Rfa1 {Threatening mate with Rb7.} Nc4 28. Rb7) 27... Ng4 {[%emt 0:01:13]} 28. exf6 {[%emt 0:00:36]} g6 {[%emt 0:00:40]} (28... gxf6 {is a better defense.} 29. h3 c4) 29. f7 {[%emt 0:01:24]} c4 {[%emt 0:00:36]} 30. Ra8+ {[%emt 0:01:28]} (30. Kh1 $142) 30... Kc7 {[%emt 0:00:05] The board is on fire.} 31. Kh1 {[%emt 0:00:07] And now Re8 would win.} Kxc6 {[%emt 0:00:47]} 32. h3 {[%emt 0:00:24]} Ne5 {[%emt 0:00:35]} 33. Rf6+ {[%emt 0:00:25][%mdl 1024] White has strong compensation.} Kb7 $2 {[%emt 0:00:20]} (33... Kb5) 34. Re8 {[%emt 0:00:37]} Nd7 {[%emt 0:00:42]} (34... Nd3 $2 35. Rf1 $18) 35. Rf3 {[%emt 0:00:21]} (35. Rf1 $142) 35... Bg7 {[%emt 0:01:44] [#] ...Rf8 would be deadly.} 36. b3 $2 {[%emt 0:01:19] [#]} (36. e5 $1 $18 {[%cal Re5e6]} Bxe5 37. Rg8 (37. f8=R Rxf8 38. Rfxf8 Nxf8 $11) (37. Rxe5 $2 Nxe5 38. f8=Q Rxf8 $19)) 36... c3 {[%emt 0:01:21]} ({Black should try} 36... Rf8 $1 $17 37. bxc4 Kc6) 37. Rf2 $2 {[%emt 0:00:27][%mdl 8192]} (37. Rg8 $1 $14 Be5 38. Rf1) 37... Rf8 $19 {[%emt 0:00:38]} 38. Kh2 {[%emt 0:00:31]} Nc5 {[%emt 0:01:18]} (38... Kc6 $142 39. g3 Nc5) 39. Rxf8 $2 {[%emt 0:00:32]} (39. e5 Nd3 {[%mdl 64] Deflection} 40. Re2 Bxe5+ 41. R2xe5 Rxf7 42. Re2) 39... Bxf8 {[%emt 0:00:07]} 40. e5 {[%emt 0:00:23]} Nxb3 {[%emt 0:01:17] ( -> ...Nd4)} 41. Re2 {[%emt 0:08:31]} Nd4 {[%emt 0:01:17] Black mates.} 42. Re1 {[%emt 0:00:31]} c2 {[%emt 0:01:35]} 43. e6 {[%emt 0:01:26] [#]} Nxe6 $1 {[%emt 0:01:05][%mdl 576] Promotion. An exciting game.   Weighted Error Value: White=1.10/Black=0.79} 0-1

[Event "CZE-ch U16 Open 2023"]
[Site "Teplice"]
[Date "2023.03.13"]
[Round "4.11"]
[White "Sigut, Ondrej"]
[Black "Davidek, Zdenek"]
[Result "0-1"]
[ECO "C86"]
[WhiteElo "1804"]
[BlackElo "1957"]
[Annotator "TA"]
[PlyCount "46"]
[EventDate "2023.03.09"]
[EventType "swiss"]
[EventCountry "CZE"]
[SourceTitle "playchess.com"]
[Source "ChessBase"]
[SourceQuality "1"]
[TimeControl "40/5400+30:1800+30"]

{[%evp 21,46,0,0,0,0,0,0,0,41,-460,-469,-463,-472,-458,-426,-370,-145,-85,-78,-341,-344,-1129,-1012,-996,-988,-954,-388]} 1. e4 {[%emt 0:00:03]} e5 {[%emt 0:00:11]} 2. Nf3 {[%emt 0:00:23]} Nc6 {[%emt 0:00:05]} 3. Bb5 {[%emt 0:00:25]} a6 {[%emt 0:00:07]} 4. Ba4 {[%emt 0:00:03]} Nf6 {[%emt 0:00:07]} 5. Qe2 {[%emt 0:00:26]} b5 {[%emt 0:00:23]} 6. Bb3 {[%emt 0:00:03]} Be7 {[%emt 0:00:19]} 7. O-O {[%emt 0:01:14]} O-O {[%emt 0:00:35]} 8. c3 {[%emt 0:03:13]} d5 {[%emt 0:00:46]} 9. exd5 {[%emt 0:03:33]} Nxd5 {[%emt 0:00:08]} 10. Nxe5 {[%emt 0:07:15]} Nxe5 {[%emt 0:00:10]} 11. Qxe5 {[%emt 0:00:04]} Nf6 {[%emt 0:00:22]} 12. d4 {[%emt 0:08:18] C86: Closed Ruy Lopez: Worrall Attack.} Bd6 {[%emt 0:00:07]} 13. Qe2 {[%emt 0:23:00]} Re8 {[%emt 0:45:57]} 14. Qd1 {[#] The position is equal.} Ng4 $146 ({Predecessor:} 14... Bb7 15. a4 Qd7 16. h3 Rad8 17. Na3 Qf5 18. axb5 Bxg2 {½-½ Fuchs,J (2052)-Schoesser,M (1838) GER T269-C86-S email 2017}) 15. f4 $2 {[%emt 0:22:29][%mdl 8192]} (15. g3 $14 {stays ahead.}) 15... Qh4 $1 $19 {[%emt 0:10:00][%csl Gg4][%cal Rh4h2]} 16. h3 {[%emt 0:01:55] [#] Qf3 would be deadly.} Qg3 {[%emt 0:11:13][%csl Gg4][%cal Rg3h2]} 17. hxg4 Bxg4 {[%emt 0:00:08]} 18. Bxf7+ {[%emt 0:08:23] [#]} Kxf7 $2 {[%emt 0:03:15]} (18... Kh8 $1 $19 {has better winning chances.} 19. Bxe8 Bxd1) 19. Qb3+ $17 {[%emt 0:00:13]} Be6 {[%emt 0:00:16] Black has more active pieces. A strong pair of Bishops.} 20. Qc2 {[%emt 0:00:16][%mdl 8192]} (20. c4 $17 Qg4 21. Nd2) 20... Bc4 $19 {[%emt 0:00:37]} 21. Qxh7 $2 {[%emt 0:03:40]} (21. Qf5+ Kg8 22. Nd2 Bxf1 23. Nxf1) 21... Bxf1 {[%emt 0:01:30][%csl Gf1][%cal Rg3g2] Black is clearly winning.} 22. Qf5+ {[%emt 0:00:26]} Ke7 {[%emt 0:00:17][%csl Gf1][%cal Rg3g2]} 23. Kxf1 {[%emt 0:00:51]} Rf8 {[%emt 0:00:31] Weighted Error Value: White=1.43/Black=0.36} (23... Rh8 $142 24. Qg5+ Qxg5 25. fxg5 Rh1+ {[%mdl 64] Skewer} 26. Ke2 Rxc1) 0-1

[Event "CZE-ch U16 Open 2023"]
[Site "Teplice"]
[Date "2023.03.13"]
[Round "4.12"]
[White "Mrazek, Adam"]
[Black "Hozda, Max"]
[Result "0-1"]
[ECO "D44"]
[WhiteElo "1745"]
[BlackElo "2067"]
[Annotator "TA"]
[PlyCount "58"]
[EventDate "2023.03.09"]
[EventType "swiss"]
[EventCountry "CZE"]
[SourceTitle "playchess.com"]
[Source "ChessBase"]
[SourceQuality "1"]
[TimeControl "40/5400+30:1800+30"]

{[%evp 25,58,116,114,112,128,114,115,125,220,176,189,184,241,230,227,222,370,343,370,363,347,152,146,-1075,-1068,-911,-904,-29986,-29987,-29996,-29997,-29997,-29998,-29998,-29999]} 1. c4 c6 2. Nc3 d5 3. d4 Nf6 4. Nf3 e6 5. Bg5 dxc4 6. e4 {[%cal Be2e4,Be4e5][%mdl 32]} b5 7. e5 h6 8. Bh4 g5 9. Nxg5 hxg5 10. Bxg5 Nbd7 11. g3 Bb7 12. Bg2 Qa5 13. exf6 O-O-O 14. O-O {D44: Semi-Slav: Botvinnik System.} Ne5 15. Qe2 Nd3 16. Be3 {White is better.} c5 {[#]} (16... b4 $16) 17. dxc5 $146 ({Predecessor:} 17. Bxb7+ Kxb7 18. dxc5 Bxc5 19. Bxc5 Nxc5 20. a4 b4 21. Nb5 Nd3 22. Qe4+ Kb8 23. Qxc4 {1-0 Sobek,J (2221)-Vesely,L (2217) CZE-chT2F 1617 2016 (5.3)}) 17... Bxg2 18. Kxg2 Bxc5 (18... Qc7 $142) 19. Bxc5 $18 Nxc5 20. a4 $1 Nb3 (20... b4 {was called for.}) 21. Nxb5 Nxa1 22. Qxc4+ Kb7 {[%cal Oa5b6] [#]} 23. Rxa1 (23. Qe4+ $1 $18 {and the rest is easy.} Rd5 24. Rxa1) 23... Qb6 $16 {[%cal Oh8h2] Hoping for ...Rxh2+!} 24. b4 $2 {[%mdl 8192] [#] Loses the game.} (24. Rc1 $2 Rxh2+ 25. Kxh2 Qxf2+ 26. Kh1 Rh8+ $19) (24. h4 $16) 24... Rxh2+ $3 $19 {[%mdl 576] Decoy} 25. Kxh2 Qxf2+ 26. Kh3 Qf5+ {Black mates.} ({But not} 26... Qxf6 27. Qc7+ Ka8 28. Qxa7#) 27. g4 Qf3+ 28. Kh4 Qf2+ 29. Kh5 Qh2+ {Ingenious play by Hozda!   Weighted Error Value: White=0.85/Black=0.21 (precise)} 0-1

[Event "CZE-ch U16 Open 2023"]
[Site "Teplice"]
[Date "2023.03.14"]
[Round "5.1"]
[White "Prazak, Daniel"]
[Black "Paseka, Matyas"]
[Result "1/2-1/2"]
[ECO "B51"]
[WhiteElo "2064"]
[BlackElo "2082"]
[Annotator "TA"]
[PlyCount "120"]
[EventDate "2023.03.09"]
[EventType "swiss"]
[EventCountry "CZE"]
[SourceTitle "playchess.com"]
[Source "ChessBase"]
[SourceQuality "1"]
[TimeControl "40/5400+30:1800+30"]

{[%evp 9,120,27,12,5,17,18,20,12,24,20,29,12,19,14,22,32,23,1,7,1,1,1,1,4,20,8,21,0,33,20,73,76,143,143,143,139,133,131,130,120,125,97,102,91,97,87,97,93,104,104,104,104,104,104,104,104,104,104,104,104,105,105,105,105,105,105,102,72,156,168,172,150,170,151,302,158,151,114,114,114,143,143,142,108,511,127,500,27,31,27,22,30,52,27,27,27,27,27,27,0,0,0,0,0,0,0,0,0,0,0,0,27,166]} 1. e4 {[%emt 0:00:02]} c5 {[%emt 0:00:07]} 2. Nf3 {[%emt 0:00:09]} d6 {[%emt 0:00:05]} 3. Bb5+ {[%emt 0:00:14]} Nd7 {[%emt 0:00:08]} 4. a4 {[%emt 0:00:09]} Ngf6 {[%emt 0:00:08]} 5. Nc3 {[%emt 0:00:07]} a6 {[%emt 0:00:07]} 6. Be2 {[%emt 0:00:08] B51: Sicilian: Moscow Variation (3 Bb5+) without 3...Bd7.} b6 {[%emt 0:00:10]} 7. d4 {[%emt 0:00:08]} cxd4 {[%emt 0:00:12]} 8. Qxd4 {[%emt 0:00:08] The position is equal.} e5 {[%emt 0:00:12]} 9. Qe3 {[%emt 0:00:27]} Bb7 {[%emt 0:00:13]} 10. O-O {[%emt 0:03:00]} Be7 {[%emt 0:01:49]} 11. Nd2 {[%emt 0:02:54]} O-O {[%emt 0:03:15]} 12. Rd1 {[%emt 0:06:21]} Qc7 {[%emt 0:00:55]} 13. Nc4 {[%emt 0:07:58]} Rad8 {[%emt 0:05:25]} 14. b3 {[%emt 0:15:10]} Nc5 {[%emt 0:02:35][%cal Rb7e4]} 15. Bf3 {[%emt 0:02:42]} Ncxe4 {[%emt 0:13:15][%mdl 64] Remove Defender, Decoy} 16. Nxe4 {[%emt 0:13:48] [#]} (16. Bxe4 Nxe4 17. Nxe4 d5 $15) 16... Nxe4 $146 {[%emt 0:00:50]} ({Predecessor:} 16... Bxe4 17. Bxe4 d5 18. Bb2 Nxe4 19. Bxe5 Qc6 20. Qxb6 Qc8 21. Ne3 Nxf2 22. Rxd5 Rxd5 23. Nxd5 Bc5 24. Ne7+ {½-½ Valenzuela Gomez,F (2390)-Papadiamandis,E (2134) Sitges Sunway 7th 2020 (5)}) 17. Bxe4 {[%emt 0:01:15]} d5 {[%emt 0:00:08] [#]} 18. Bb2 $1 {[%emt 0:01:12]} dxe4 {[%emt 0:15:04]} (18... f6 19. Qxb6) 19. Bxe5 {[%emt 0:02:02]} Qc5 {[%emt 0:00:14]} (19... Rxd1+ $11 20. Rxd1 Rd8) 20. Bd4 $36 {[%emt 0:01:48][%mdl 2048] Keeping Black busy.} Rxd4 {[%emt 0:00:45]} 21. Qxd4 {[%emt 0:00:37]} ({Worse is} 21. Rxd4 Bg5 22. f4 exf3 $15) 21... Qxd4 {[%emt 0:00:08]} 22. Rxd4 {[%emt 0:00:09][%cal Oa1d1] Threatens to win with Rad1!} Bf6 {[%emt 0:00:06] [#]} 23. Rad1 {[%emt 0:01:46] Rd6 is the strong threat.} Bxd4 {[%emt 0:00:08]} 24. Rxd4 {[%emt 0:00:07][%mdl 4096] Endgame KRB-KRN} b5 {[%emt 0:18:40]} 25. axb5 {[%emt 0:00:46]} axb5 {[%emt 0:00:06]} 26. Nd6 {[%emt 0:00:08][%csl LRb5,LRb7,LRe4]} Ra8 {[%emt 0:00:43] ( -> ...Ra1+)} 27. h3 {[%emt 0:02:06] White is much more active.} (27. Nxb7 $2 {is a self mate.} Ra1+) 27... Bc6 {[%emt 0:02:44]} 28. Nxe4 {[%emt 0:00:33]} Bxe4 {[%emt 0:00:57]} 29. Rxe4 {[%emt 0:00:07] KR-KR} g6 {[%emt 0:00:22]} 30. Rb4 {[%emt 0:04:09]} Ra1+ {[%emt 0:00:38]} 31. Kh2 {[%emt 0:00:08]} Ra2 {[%emt 0:00:41]} 32. c3 {[%emt 0:00:27]} Rc2 {[%emt 0:10:26]} 33. Rxb5 {[%emt 0:00:22] aiming for c4.} Rxc3 {[%emt 0:00:06]} 34. g3 {[%emt 0:00:07]} Rc2 {[%emt 0:00:24]} 35. Kg2 {[%emt 0:00:11]} Rb2 {[%emt 0:00:05]} 36. h4 {[%emt 0:00:09]} h5 {[%emt 0:00:10]} 37. Kf3 {[%emt 0:00:39]} Kg7 {[%emt 0:00:21]} 38. Rb6 {[%emt 0:00:27]} Rb1 {[%emt 0:00:44]} ({Black should try} 38... f6) 39. b4 {[%emt 0:01:13]} Rb3+ {[%emt 0:00:27]} 40. Kf4 {[%emt 0:00:12]} Rb2 {[%emt 0:01:27]} 41. f3 {[%emt 0:30:50]} Rb1 $2 {[%emt 0:31:55]} (41... Kf8 $16 42. g4 Rh2) 42. Rb7 {[%emt 0:01:05]} ({White must play} 42. b5 $18) 42... Kf6 {[%emt 0:00:37]} 43. b5 {[%emt 0:01:09]} Rb4+ {[%emt 0:00:22]} 44. Ke3 {[%emt 0:00:08]} Rb3+ {[%emt 0:00:06]} 45. Ke4 {[%emt 0:02:26]} Ke6 {[%emt 0:06:26]} 46. b6 {[%emt 0:02:08]} Kf6 $2 {[%emt 0:05:03][%mdl 8192]} (46... Rb4+ $16 {is more resistant.} 47. Kd3 Kd5) 47. Rb8 $2 {[%emt 0:02:41]} (47. Kd5 $18 {is the precise move to win. Hoping for Kc5.} Rxf3 48. Kc4 Rxg3 49. Rc7) 47... Kg7 $2 {[%emt 0:00:27][%mdl 8192]} (47... Ke6 $16 {is a better chance.} 48. b7 Rb4+ 49. Kd3 Ke7) 48. b7 $2 {[%emt 0:00:55]} (48. Kd4 $18) 48... Rb1 {[%emt 0:01:02]} 49. Kd3 {[%emt 0:04:00]} Rb6 {[%emt 0:01:35]} 50. Kd4 {[%emt 0:03:49]} Rb1 {[%emt 0:02:29]} 51. g4 {[%emt 0:01:52]} hxg4 {[%emt 0:06:27]} 52. fxg4 {[%emt 0:00:09]} Rd1+ {[%emt 0:00:25]} 53. Kc3 {[%emt 0:00:47]} Rb1 {[%emt 0:00:06]} 54. h5 {[%emt 0:01:21]} gxh5 {[%emt 0:00:06]} 55. gxh5 {[%emt 0:00:05]} Kh7 {[%emt 0:00:56]} 56. Kd4 {[%emt 0:00:10]} Kg7 {[%emt 0:00:19]} 57. h6+ {[%emt 0:00:04]} Kh7 $1 {[%emt 0:00:04]} 58. Ke5 {[%emt 0:00:04]} Re1+ {[%emt 0:00:21]} 59. Kf6 {[%emt 0:00:08][%cal Ob8h8]} Rf1+ {[%emt 0:00:36]} 60. Ke7 {[%emt 0:00:05][%cal Ob8h8] Threatening mate with Rh8+!} Re1+ {[%emt 0:00:07] Blacks defense is rewarded with a draw.   Weighted Error Value: White=0.36/Black=0.31} 1/2-1/2